bitfinex/quotes_BTCUSD_20251219
["timestamp","ask_amount","ask_price","bid_price","bid_amount"]
[1766110174203,0.57999,85390.0,85350.0,0.23432688]
[1766110174204,0.03521017,85381.0,85361.0,0.47831]
[1766110174416,0.0907,85389.0,85363.0,0.47831]
[1766110174637,0.0907,85389.0,85364.0,0.60946]
[1766110174638,0.00588,85388.0,85364.0,0.60946]
[1766110174851,0.0907,85379.0,85368.0,1.08777]
[1766110175112,0.0907,85379.0,85368.0,0.004781]
[1766110175306,0.0907,85379.0,85363.0,0.00588]
[1766110175495,0.01410645,85378.0,85363.0,0.00588]
[1766110175698,0.70727437,85373.0,85363.0,0.00588]
[1766110175935,0.01410645,85372.0,85363.0,0.00588]
[1766110176157,1.08565,85375.0,85363.0,0.00588]
[1766110176379,1.0857604,85375.0,85363.0,0.00588]
[1766110176560,0.5057704,85375.0,85363.0,0.61534]
[1766110176862,0.0059904,85375.0,85364.0,1.08777]
[1766110177740,1.07977,85374.0,85363.0,0.00588]
[1766110177944,0.01206308,85373.0,85363.0,0.00588]
[1766110178547,1.09183308,85373.0,85363.0,0.00588]
[1766110178746,1.07977,85373.0,85363.0,0.00588]
[1766110178973,0.01410645,85372.0,85363.0,0.00588]
[1766110179303,0.49978,85373.0,85363.0,0.00588]
[1766110179612,0.01837832,85370.0,85363.0,0.00588]
[1766110180387,0.01410645,85369.0,85363.0,0.00588]
[1766110180905,0.01837832,85370.0,85363.0,0.00588]
[1766110182060,0.01837832,85370.0,85363.0,0.61534]
[1766110182690,0.01837832,85370.0,85363.0,0.00588]
[1766110185734,0.01410645,85369.0,85363.0,0.00588]
[1766110186276,0.01410645,85369.0,85359.0,0.00588]
[1766110186640,1.0403,85368.0,85359.0,0.00588]
[1766110186843,0.01410645,85367.0,85359.0,0.00588]
[1766110188111,1.05440645,85367.0,85359.0,0.00588]
[1766110188315,1.04618,85367.0,85359.0,0.00588]
[1766110190394,0.4782,85367.0,85359.0,0.00588]
[1766110190728,0.00588,85367.0,85359.0,0.00588]
[1766110191101,0.00588,85367.0,85359.0,0.57664]
[1766110191305,0.00588,85367.0,85359.0,1.04191]
[1766110191876,0.00588,85367.0,85359.0,0.47115]
[1766110192680,0.004781,85367.0,85359.0,1.04191]
[1766110192895,0.01837832,85370.0,85360.0,1.03603]
[1766110193096,0.00588,85369.0,85360.0,1.03603]
[1766110193352,0.00588,85369.0,85360.0,0.46527]
[1766110193573,0.00588,85369.0,85361.0,1.03603]
[1766110193936,0.02425832,85370.0,85361.0,1.03603]
[1766110194135,0.48668307,85378.0,85359.0,0.00588]
[1766110194338,0.00588,85377.0,85360.0,1.03603]
[1766110194863,0.00588,85376.0,85361.0,0.57076]
[1766110195071,0.47232,85378.0,85361.0,1.03603]
[1766110195450,0.47232,85377.0,85361.0,1.03603]
[1766110195631,0.4782,85377.0,85361.0,1.03603]
[1766110196238,0.47232,85375.0,85361.0,0.46527]
[1766110196438,0.00588,85377.0,85359.0,0.00624805]
[1766110196821,0.56798,85371.0,85356.0,0.00588]
[1766110197021,1.0403,85366.0,85356.0,0.00588]
[1766110197229,0.01410645,85365.0,85356.0,0.00588]
[1766110197953,0.01410645,85365.0,85356.0,0.00571373]
[1766110198874,0.01410645,85365.0,85356.0,0.47098373]
[1766110199087,0.00588,85367.0,85356.0,0.47098373]
[1766110199275,0.4782,85367.0,85356.0,0.47098373]
[1766110199931,0.4782,85367.0,85348.0,0.04692]
[1766110199932,0.001099,85356.0,85348.0,0.46527]
[1766110200143,0.56798,85364.0,85332.0,0.08199629]
[1766110200144,0.56798,85352.0,85332.0,1.10630736]
[1766110200293,0.70815044,85350.0,85334.0,1.03603]
[1766110200496,0.47232,85348.0,85334.0,1.03603]
[1766110200712,0.01410645,85347.0,85334.0,1.03603]
[1766110201084,0.00588,85350.0,85333.0,0.0528]
[1766110201335,0.71403044,85350.0,85333.0,0.0528]
[1766110201739,0.71403044,85350.0,85333.0,0.00588]
[1766110202086,0.47232,85342.0,85333.0,0.00588]
[1766110203119,0.58883,85348.0,85334.0,0.08433975]
[1766110203120,0.00588,85348.0,85334.0,0.08433975]
[1766110203332,0.58883,85375.0,85347.0,0.4953]
[1766110203543,0.52041,85373.0,85353.0,0.4953]
[1766110203753,0.52041,85373.0,85350.0,0.70815044]
[1766110203754,0.47349,85373.0,85358.0,0.56066]
[1766110203956,0.00588,85372.0,85361.0,0.56066]
[1766110204409,0.47349,85368.0,85354.0,0.00588]
[1766110204624,0.47349,85365.0,85354.0,0.00588]
[1766110205003,0.01410645,85364.0,85354.0,0.00588]
[1766110206212,0.47385821,85365.0,85354.0,0.00588]
[1766110206472,0.00036821,85365.0,85354.0,0.00588]
[1766110206680,0.00588,85369.0,85359.0,0.4953]
[1766110206827,0.58883,85380.0,85363.0,0.4953]
[1766110207201,0.00588,85379.0,85363.0,0.4953]
[1766110207736,0.00588,85378.0,85363.0,0.4953]
[1766110208066,0.00588,85377.0,85363.0,0.4953]
[1766110209000,0.00588,85377.0,85363.0,1.05596]
[1766110209655,0.00588,85377.0,85362.0,0.00588]
[1766110209656,0.03521042,85386.0,85362.0,0.00588]
[1766110209866,0.00588,85385.0,85362.0,0.01993777]
[1766110210300,0.00588,85385.0,85363.0,1.05596]
[1766110210508,0.00588,85385.0,85365.0,1.05596]
[1766110210720,0.00588,85385.0,85360.0,0.01171508]
[1766110210721,0.07027736,85369.0,85320.0,0.00199998]
[1766110210936,0.07027736,85369.0,85324.0,0.00588]
[1766110210937,1.06232,85338.0,85324.0,0.00588]
[1766110211150,0.01410645,85337.0,85325.0,0.4953]
[1766110211375,0.00588,85342.0,85327.0,0.4953]
[1766110211578,0.00588,85342.0,85327.0,1.05596]
[1766110212023,0.00588,85342.0,85324.0,0.00588]
[1766110212024,0.00588,85342.0,85325.0,1.05596]
[1766110212440,0.59471,85342.0,85325.0,1.05596]
[1766110215708,0.01838601,85338.0,85325.0,1.05596]
[1766110217159,0.01838601,85338.0,85324.0,0.00588]
[1766110217395,0.01838601,85338.0,85326.0,0.48114]
[1766110219178,0.00588,85343.0,85331.0,0.59976]
[1766110219379,0.00588,85343.0,85333.0,1.0809]
[1766110219991,0.00588,85348.0,85333.0,1.0809]
[1766110220615,0.00588,85347.0,85336.0,0.48114]
[1766110220815,0.00588,85351.0,85338.0,1.0809]
[1766110221074,0.00588,85354.0,85343.0,0.59976]
[1766110221230,0.00588,85355.0,85344.0,0.48114]
[1766110221410,0.16097736,85369.0,85347.0,0.59976]
[1766110221614,0.03521831,85362.0,85351.0,1.0809]
[1766110221856,1.06556,85379.0,85355.0,0.59976]
[1766110222074,0.03521234,85379.0,85361.0,0.59976]
[1766110222242,0.00588234,85379.0,85363.0,0.59976]
[1766110222453,0.00588,85379.0,85363.0,0.59976]
[1766110223558,0.00588,85379.0,85362.0,0.00588]
[1766110223756,0.00588,85379.0,85363.0,0.59976]
[1766110224160,0.00588,85379.0,85364.0,0.48114]
[1766110224768,0.00588,85379.0,85366.0,0.48114]
[1766110224950,0.00588,85379.0,85366.0,1.0809]
[1766110225470,0.60398,85382.0,85366.0,1.0809]
[1766110226938,0.5981,85382.0,85366.0,1.0809]
[1766110227107,0.60398,85382.0,85366.0,1.0809]
[1766110227472,1.07144,85382.0,85366.0,1.0809]
[1766110227670,0.00588,85382.0,85366.0,0.48114]
[1766110227871,0.5981,85387.0,85363.0,1.0809]
[1766110228121,0.46746,85384.0,85364.0,0.48114]
[1766110228338,1.06556,85383.0,85365.0,1.0809]
[1766110228546,0.5981,85384.0,85365.0,1.0809]
[1766110228836,0.5981,85382.0,85365.0,1.0809]
[1766110229452,1.06556,85382.0,85365.0,1.0809]
[1766110229649,0.00588,85381.0,85365.0,1.0809]
[1766110230153,0.5981,85378.0,85365.0,0.48114]
[1766110231198,0.5981,85378.0,85365.0,0.48702]
[1766110231839,0.46746,85379.0,85365.0,0.48702]
[1766110232013,0.00588,85381.0,85365.0,0.00588]
[1766110232227,0.00588,85380.0,85363.0,0.00588]
[1766110232663,0.00588,85380.0,85364.0,1.0809]
[1766110233076,0.00588,85380.0,85363.0,0.00588]
[1766110233280,2.00947335,85373.0,85363.0,0.00588]
[1766110233631,0.61220645,85372.0,85363.0,0.00588]
[1766110233839,0.5981,85372.0,85342.0,0.24606825]
[1766110234045,0.001099,85363.0,85351.0,1.0809]
[1766110234222,0.001099,85363.0,85352.0,0.00588]
[1766110234430,0.5981,85367.0,85353.0,0.48114]
[1766110234629,0.46746,85371.0,85352.0,0.60564]
[1766110234630,0.46746,85371.0,85354.0,1.0809]
[1766110234829,0.46746,85371.0,85355.0,0.48114]
[1766110235723,0.5981,85370.0,85355.0,0.48114]
[1766110235929,0.01838054,85369.0,85355.0,0.48114]
[1766110237172,0.01838054,85369.0,85357.0,0.48114]
[1766110237365,0.01838054,85369.0,85358.0,0.00588]
[1766110238416,0.01838054,85369.0,85359.0,0.48114]
[1766110238835,0.5981,85365.0,85336.0,0.48114]
[1766110239056,1.06556,85357.0,85337.0,0.0528]
[1766110239262,0.46746,85353.0,85339.0,0.48114]
[1766110239473,1.07966645,85352.0,85339.0,0.48114]
[1766110239680,1.06556,85351.0,85338.0,0.00588]
[1766110240101,0.9638998,85350.0,85338.0,0.00588]
[1766110240309,0.94979335,85350.0,85338.0,0.00624821]
[1766110240722,0.01410645,85349.0,85338.0,0.00036821]
[1766110240932,0.01998645,85349.0,85338.0,0.00036821]
[1766110242148,0.00588,85349.0,85338.0,0.00036821]
[1766110243702,0.56188,85372.0,85342.0,0.01171755]
[1766110243910,0.00588,85368.0,85348.0,0.53496]
[1766110244137,0.00588,85368.0,85353.0,0.45714]
[1766110244349,0.00588,85368.0,85355.0,0.9921]
[1766110246156,0.00588,85368.0,85355.0,0.99798]
[1766110246948,0.00588,85368.0,85355.0,0.46302]
[1766110249156,0.01838118,85367.0,85355.0,0.46302]
[1766110250693,0.00588,85368.0,85355.0,0.46302]
[1766110251327,1.0587,85367.0,85355.0,0.00588]
[1766110251878,0.00588,85368.0,85355.0,0.00588]
[1766110252085,1.0587,85367.0,85355.0,0.00588]
[1766110253184,0.00588,85368.0,85355.0,0.00588]
[1766110253799,0.01838145,85365.0,85355.0,0.00588]
[1766110254239,1.0587,85364.0,85355.0,0.00588]
[1766110254429,0.01838145,85365.0,85355.0,0.00588]
[1766110255071,0.01838145,85365.0,85344.0,0.53496]
[1766110255072,0.01410645,85364.0,85344.0,0.53496]
[1766110255285,0.001099,85355.0,85347.0,0.00588]
[1766110255504,0.001099,85355.0,85342.0,0.00588]
[1766110255710,0.56188,85350.0,85338.0,0.00036821]
[1766110255927,0.56188,85346.0,85338.0,0.00036821]
[1766110256132,0.01998645,85349.0,85334.0,0.00588]
[1766110256133,0.56188,85342.0,85334.0,0.00588]
[1766110256345,0.01410645,85341.0,85327.0,0.00588]
[1766110256864,0.49682,85340.0,85327.0,0.00588]
[1766110257095,0.00588,85342.0,85327.0,0.00588]
[1766110257096,1.07280645,85339.0,85327.0,0.00588]
[1766110257359,1.0587,85339.0,85327.0,0.00588]
[1766110257558,0.01410645,85338.0,85327.0,0.00588]
[1766110257923,1.0587,85339.0,85327.0,0.00588]
[1766110258121,1.0587,85339.0,85317.0,0.04692]
[1766110258122,0.56188,85334.0,85317.0,0.04692]
[1766110258348,0.07027736,85338.0,85323.0,5.5e-07]
[1766110258349,0.9638998,85333.0,85323.0,5.5e-07]
[1766110258593,0.00588,85332.0,85323.0,5.5e-07]
[1766110258890,0.01410645,85331.0,85323.0,5.5e-07]
[1766110259282,0.49682,85330.0,85323.0,5.5e-07]
[1766110259482,0.49682,85328.0,85323.0,5.5e-07]
[1766110259647,0.49682,85326.0,85323.0,5.5e-07]
[1766110259846,0.01410645,85325.0,85323.0,5.5e-07]
[1766110260887,0.00588,85331.0,85323.0,5.5e-07]
[1766110261113,1.06458,85331.0,85323.0,5.5e-07]
[1766110261476,0.00588,85331.0,85323.0,5.5e-07]
[1766110262861,0.47076,85349.0,85323.0,5.5e-07]
[1766110263070,0.0907,85342.0,85323.0,5.5e-07]
[1766110263318,0.00588,85341.0,85324.0,1.02289]
[1766110263528,0.47076,85337.0,85323.0,5.5e-07]
[1766110263832,0.99945,85336.0,85323.0,5.5e-07]
[1766110264581,0.52869,85330.0,85323.0,5.5e-07]
[1766110264777,0.47076,85327.0,85323.0,5.5e-07]
[1766110265608,0.00588,85331.0,85323.0,5.5e-07]
[1766110265874,0.99945,85330.0,85323.0,5.5e-07]
[1766110266105,0.00588,85331.0,85323.0,5.5e-07]
[1766110266216,0.00588,85333.0,85324.0,0.55773]
[1766110266429,0.00588,85335.0,85324.0,1.02289]
[1766110267287,0.01838701,85333.0,85324.0,1.02289]
[1766110267686,0.61939,85342.0,85323.0,5.5e-07]
[1766110267891,0.16097736,85344.0,85324.0,1.02289]
[1766110268112,0.00588,85341.0,85324.0,0.55773]
[1766110268366,0.00588,85341.0,85323.0,5.5e-07]
[1766110271263,0.47076,85340.0,85323.0,5.5e-07]
[1766110271504,0.00588,85343.0,85323.0,5.5e-07]
[1766110271883,1.00533,85343.0,85323.0,5.5e-07]
[1766110272099,0.00588,85343.0,85323.0,5.5e-07]
[1766110273512,0.00588,85343.0,85324.0,0.4918]
[1766110273714,0.00588,85343.0,85328.0,0.4918]
[1766110273920,0.00588,85343.0,85323.0,5.5e-07]
[1766110274252,0.00588,85342.0,85324.0,0.54753]
[1766110274595,0.0907,85349.0,85329.0,1.03933]
[1766110274596,0.00588,85341.0,85329.0,1.03933]
[1766110275163,0.47378,85341.0,85329.0,0.4918]
[1766110276685,0.47378,85341.0,85329.0,1.03933]
[1766110277332,0.4679,85341.0,85329.0,1.03933]
[1766110277537,0.00588,85341.0,85330.0,0.54700178]
[1766110278038,0.00588,85341.0,85330.0,1.03880178]
[1766110279190,0.00588,85341.0,85327.0,0.4918]
[1766110279600,0.00588,85341.0,85330.0,0.54753]
[1766110279842,0.00588,85341.0,85330.0,1.03933]
[1766110282600,0.47378,85341.0,85326.0,0.00588]
[1766110282803,0.99981,85341.0,85326.0,0.00588]
[1766110283429,0.99981,85341.0,85326.0,1.04521]
[1766110283702,0.5586,85351.0,85327.0,1.03933]
[1766110283876,0.01838634,85352.0,85331.0,0.4918]
[1766110284071,0.00588,85350.0,85333.0,0.4918]
[1766110284280,0.001099,85333.0,85328.0,0.54753]
[1766110284494,0.00422182,85342.0,85329.0,0.4918]
[1766110284696,0.00588,85343.0,85329.0,0.4918]
[1766110285953,0.00588,85343.0,85329.0,1.03933]
[1766110286420,0.00588,85343.0,85326.0,0.00588]
[1766110286618,0.00588,85343.0,85327.0,1.03933]
[1766110286819,0.4679,85342.0,85326.0,0.00588]
[1766110286978,0.4679,85342.0,85327.0,1.03933]
[1766110287557,0.2853994,85342.0,85327.0,1.03933]
[1766110287714,0.2853994,85342.0,85327.0,0.4918]
[1766110287900,0.2853994,85342.0,85327.0,1.03933]
[1766110288078,0.2853994,85342.0,85326.0,0.00588]
[1766110288283,0.2853994,85342.0,85327.0,1.03933]
[1766110288548,0.2853994,85342.0,85326.0,0.00588]
[1766110288758,0.2853994,85342.0,85327.0,1.03933]
[1766110289559,0.2853994,85342.0,85326.0,0.00588]
[1766110289768,0.2853994,85342.0,85327.0,1.03933]
[1766110289998,0.2853994,85342.0,85326.0,0.00588]
[1766110290534,0.2853994,85342.0,85327.0,1.03933]
[1766110290959,0.2853994,85342.0,85326.0,0.00588]
[1766110292105,0.2853994,85342.0,85327.0,1.03933]
[1766110292545,0.2853994,85342.0,85327.0,0.4918]
[1766110292745,0.2853994,85342.0,85327.0,1.03933]
[1766110292952,0.2853994,85342.0,85326.0,0.00588]
[1766110293191,0.07649795,85342.0,85326.0,0.00588]
[1766110293766,0.00588,85343.0,85327.0,0.4918]
[1766110293948,0.00588,85343.0,85326.0,0.00588]
[1766110294747,0.01838586,85344.0,85326.0,0.00588]
[1766110294955,0.02426586,85344.0,85327.0,1.03933]
[1766110295156,0.02426586,85344.0,85326.0,0.00588]
[1766110295377,0.02426586,85344.0,85327.0,1.03933]
[1766110295584,0.02426586,85344.0,85326.0,0.00588]
[1766110296211,0.02426586,85344.0,85327.0,1.03933]
[1766110296416,0.01838586,85344.0,85326.0,0.00588]
[1766110297078,0.0907,85353.0,85330.0,0.70849731]
[1766110297283,0.0907,85353.0,85334.0,0.54753]
[1766110297510,0.00588,85352.0,85339.0,0.4918]
[1766110297704,0.20849731,85350.0,85343.0,0.02213983]
[1766110297909,0.00588,85352.0,85343.0,0.02213983]
[1766110298086,0.00588,85351.0,85343.0,0.02213983]
[1766110298491,0.07027736,85356.0,85343.0,0.02213983]
[1766110298492,0.00588,85352.0,85343.0,0.02213983]
[1766110298692,0.00588,85352.0,85336.0,0.00588]
[1766110299110,0.0907,85366.0,85340.0,0.70849731]
[1766110299267,0.5586,85359.0,85340.0,0.70849731]
[1766110299645,0.00588,85358.0,85337.0,0.54753]
[1766110299789,0.0907,85357.0,85337.0,0.54753]
[1766110300178,0.4679,85356.0,85337.0,0.54753]
[1766110300386,1.70242731,85350.0,85337.0,0.54753]
[1766110300587,0.4679,85349.0,85337.0,0.54753]
[1766110301647,0.4679,85349.0,85338.0,0.54753]
[1766110301861,1.17639731,85350.0,85336.0,0.00588]
[1766110302248,1.17639731,85350.0,85338.0,0.54753]
[1766110302654,0.70849731,85350.0,85336.0,0.00588]
[1766110302854,0.70849731,85347.0,85331.0,0.00588]
[1766110302984,0.70849731,85340.0,85331.0,0.00588]
[1766110303600,0.58482,85343.0,85331.0,0.00588]
[1766110303601,1.20763731,85341.0,85331.0,0.00588]
[1766110304060,0.70849731,85341.0,85332.0,0.96322]
[1766110305401,0.00588,85345.0,85332.0,0.96322]
[1766110306425,0.00588,85345.0,85331.0,0.00588]
[1766110306620,0.00588,85345.0,85334.0,0.59142]
[1766110306961,0.00588,85345.0,85336.0,0.59142]
[1766110307165,0.00588,85345.0,85337.0,0.59142]
[1766110307323,0.00588,85345.0,85331.0,0.00588]
[1766110307528,0.00588,85345.0,85335.0,0.36004]
[1766110307841,0.00588,85345.0,85332.0,0.95146]
[1766110308044,0.00588,85345.0,85332.0,0.59142]
[1766110308245,0.00588,85347.0,85336.0,0.59142]
[1766110308569,0.00588,85347.0,85340.0,0.35416]
[1766110308769,0.00588,85347.0,85340.0,0.94558]
[1766110309017,0.00588,85347.0,85331.0,0.00588]
[1766110309217,0.00588,85347.0,85333.0,0.59142]
[1766110309366,0.00588,85347.0,85331.0,0.00588]
[1766110309534,1.08396,85346.0,85331.0,0.00588]
[1766110309736,0.00588,85347.0,85331.0,0.00588]
[1766110309938,0.07027736,85345.0,85331.0,0.00588]
[1766110310239,0.49914,85343.0,85331.0,0.00588]
[1766110311075,0.07027736,85345.0,85316.0,0.00045627]
[1766110311076,0.49914,85330.0,85316.0,0.00045627]
[1766110311267,0.49914,85327.0,85316.0,0.00045627]
[1766110315626,0.02426835,85329.0,85318.0,0.36004]
[1766110315801,0.02426835,85329.0,85320.0,0.36004]
[1766110316035,0.02426835,85329.0,85320.0,0.95146]
[1766110316238,0.00588,85328.0,85324.0,1e-08]
[1766110316576,0.00588,85327.0,85316.0,0.00045627]
[1766110316760,1e-06,85327.0,85318.0,0.70849731]
[1766110318180,1e-06,85327.0,85319.0,0.59142]
[1766110319826,0.07027736,85345.0,85319.0,0.59142]
[1766110319827,0.00588,85332.0,85319.0,0.59142]
[1766110320035,0.00588,85339.0,85323.0,0.59142]
[1766110320237,0.00588,85339.0,85331.0,0.59142]
[1766110320582,0.00588,85341.0,85331.0,0.59142]
[1766110321026,0.00588,85341.0,85330.0,0.70849731]
[1766110321435,0.04696,85357.0,85331.0,0.5973]
[1766110321634,0.70849731,85360.0,85331.0,0.5973]
[1766110321635,0.0907,85356.0,85331.0,0.5973]
[1766110321839,0.0907,85356.0,85341.0,0.58985]
[1766110322093,0.00588,85358.0,85341.0,0.59573]
[1766110322433,0.56772736,85357.0,85341.0,0.00588]
[1766110323189,0.00588,85358.0,85342.0,0.58985]
[1766110323393,0.56121,85360.0,85341.0,0.00588]
[1766110323662,0.56709,85360.0,85349.0,0.58985]
[1766110323978,0.56709,85360.0,85350.0,0.58985]
[1766110324190,0.56121,85360.0,85350.0,0.70849731]
[1766110324425,0.56127912,85360.0,85347.0,0.00588]
[1766110324633,6.912e-05,85360.0,85347.0,0.00588]
[1766110326286,0.00588,85362.0,85347.0,0.00588]
[1766110326468,0.00588,85362.0,85347.0,0.00594912]
[1766110326973,0.02426224,85362.0,85347.0,0.00594912]
[1766110327987,0.52171224,85362.0,85347.0,0.00594912]
[1766110328501,0.52171224,85362.0,85347.0,0.59579912]
[1766110328802,0.01838224,85362.0,85351.0,0.58985]
[1766110328968,2.24e-06,85362.0,85351.0,0.58985]
[1766110329173,0.04696,85378.0,85350.0,0.70849731]
[1766110329174,4.3e-06,85389.0,85359.0,0.01171522]
[1766110329372,0.0004,85430.0,85350.0,1.41699462]
[1766110329373,0.01170329,85446.0,85400.0,0.00099999]
[1766110329595,0.56121,85440.0,85406.0,0.01170877]
[1766110329801,0.56121,85438.0,85420.0,0.00099999]
[1766110330021,0.56121,85438.0,85421.0,0.0907]
[1766110330217,0.56121,85444.0,85428.0,0.70849731]
[1766110330419,0.0004,85453.0,85430.0,0.01170548]
[1766110330678,0.00076898,85450.0,85441.0,0.54811]
[1766110330880,0.00076898,85450.0,85442.0,0.01170384]
[1766110331086,0.0004,85453.0,85450.0,0.01170275]
[1766110331296,0.0004,85461.0,85451.0,0.55422]
[1766110331509,6.4e-07,85463.0,85459.0,0.54709]
[1766110331710,6.4e-07,85463.0,85460.0,0.01170138]
[1766110331841,6.4e-07,85463.0,85458.0,0.54709]
[1766110332073,0.001099,85458.0,85457.0,0.00592]
[1766110332834,0.47112,85461.0,85457.0,0.00592]
[1766110333033,0.14054896,85459.0,85457.0,0.00592]
[1766110333353,6.4e-07,85463.0,85457.0,0.00592]
[1766110333354,6.4e-07,85463.0,85460.0,0.01170138]
[1766110333630,6.4e-07,85463.0,85457.0,0.00592]
[1766110334275,0.14054896,85462.0,85457.0,0.004821]
[1766110334478,6.4e-07,85463.0,85457.0,0.004821]
[1766110337360,0.67080064,85463.0,85434.0,0.01170494]
[1766110337558,1.05122,85450.0,85438.0,0.23408787]
[1766110337738,0.00032415,85437.0,85436.0,0.00599064]
[1766110337944,1.5e-07,85437.0,85436.0,0.05600903]
[1766110338352,1.5e-07,85437.0,85436.0,0.60097903]
[1766110338526,1.5e-07,85437.0,85436.0,0.83507238]
[1766110338734,1.5e-07,85437.0,85436.0,0.60097903]
[1766110338976,1.5e-07,85437.0,85436.0,0.05600903]
[1766110339713,1.5e-07,85437.0,85436.0,0.60077903]
[1766110339854,1.5e-07,85437.0,85436.0,0.05600903]
[1766110340474,1.5e-07,85437.0,85436.0,0.60030903]
[1766110344002,1.5e-07,85437.0,85436.0,0.05600903]
[1766110347599,1.5e-07,85437.0,85436.0,0.05568503]
[1766110347978,1.5e-07,85437.0,85436.0,0.59613503]
[1766110348177,1.5e-07,85437.0,85436.0,0.05568503]
[1766110351885,1.5e-07,85437.0,85436.0,0.00566664]
[1766110352093,1.5e-07,85437.0,85435.0,0.00588]
[1766110352308,0.00011039,85437.0,85435.0,0.00588]
[1766110360553,3.9e-07,85437.0,85435.0,0.00588]
[1766110360764,0.46612449,85456.0,85440.0,0.53467]
[1766110360973,0.46612449,85456.0,85441.0,0.00588]
[1766110361828,0.5801,85455.0,85441.0,0.00490918]
[1766110362048,0.65030828,85455.0,85441.0,0.00490918]
[1766110362755,0.56942,85453.0,85441.0,0.00490918]
[1766110362966,0.56942,85451.0,85441.0,0.00490918]
[1766110363178,1.06635,85451.0,85441.0,0.00490918]
[1766110364343,0.07020828,85455.0,85441.0,0.00490918]
[1766110364582,1.06635,85454.0,85441.0,0.00490918]
[1766110364781,0.07020828,85455.0,85441.0,0.00490918]
[1766110365756,1.06635,85454.0,85441.0,0.00490918]
[1766110365955,0.07020828,85455.0,85441.0,0.00490918]
[1766110366175,1.06635,85454.0,85441.0,0.00490918]
[1766110366572,0.07020828,85455.0,85441.0,0.00490918]
[1766110366772,1.06635,85454.0,85441.0,0.00490918]
[1766110367070,0.07020828,85455.0,85441.0,0.00490918]
[1766110367273,0.07020828,85455.0,85440.0,0.00036898]
[1766110367537,1.06635,85454.0,85433.0,0.00588]
[1766110367701,0.49693,85450.0,85426.0,0.04692]
[1766110367904,0.56942,85436.0,85426.0,0.05116329]
[1766110368196,0.07020828,85442.0,85412.0,0.5271]
[1766110368197,1.06635,85429.0,85421.0,0.00588]
[1766110368382,0.00588,85440.0,85421.0,0.00588]
[1766110368581,0.0907,85438.0,85412.0,0.05309]
[1766110368783,0.0907,85436.0,85413.0,0.00588]
[1766110369198,0.49693,85425.0,85401.0,0.06449224]
[1766110369399,0.56942,85420.0,85402.0,0.00588]
[1766110369675,1.06635,85415.0,85403.0,0.05001839]
[1766110370334,1.06671823,85415.0,85403.0,0.05001839]
[1766110370535,0.56942,85423.0,85415.0,0.00073077]
[1766110370742,1.06642763,85423.0,85415.0,0.00073077]
[1766110370950,7.763e-05,85423.0,85415.0,0.00073077]
[1766110371149,1.06635,85422.0,85405.0,0.05001839]
[1766110371358,7.763e-05,85423.0,85405.0,0.05001839]
[1766110371559,1.06635,85421.0,85405.0,0.05001839]
[1766110372696,0.010938,85420.0,85405.0,0.05001839]
[1766110372893,1.06635,85420.0,85405.0,0.05001839]
[1766110373155,0.56942,85419.0,85405.0,0.05001839]
[1766110373856,0.56942,85417.0,85403.0,0.05001839]
[1766110374378,0.56942,85415.0,85403.0,0.05001839]
[1766110376005,1.06635,85414.0,85403.0,0.05001839]
[1766110377124,0.00588,85422.0,85403.0,0.05001839]
[1766110377342,1.06635,85421.0,85403.0,0.05001839]
[1766110377787,0.49693,85421.0,85403.0,0.05001839]
[1766110378809,0.50281,85420.0,85403.0,0.05001839]
[1766110379629,0.56942,85419.0,85403.0,0.05001839]
[1766110379830,0.56942,85418.0,85403.0,0.05001839]
[1766110380238,1.06635,85418.0,85403.0,0.05001839]
[1766110380552,0.49693,85415.0,85403.0,0.05001839]
[1766110381509,0.00588,85420.0,85405.0,0.05001839]
[1766110381678,0.00588,85420.0,85405.0,0.60411839]
[1766110381895,0.49693,85422.0,85406.0,0.5541]
[1766110382090,0.49693,85441.0,85424.0,0.06913]
[1766110382292,0.57882,85452.0,85426.0,0.06913]
[1766110382491,0.00588,85451.0,85429.0,0.56599]
[1766110382692,1.06908,85448.0,85429.0,0.56599]
[1766110383085,0.0907,85449.0,85429.0,0.56599]
[1766110383315,1.06908,85448.0,85429.0,0.56599]
[1766110383514,0.00588,85447.0,85431.0,0.56599]
[1766110383700,1.07496,85447.0,85432.0,0.00588]
[1766110384056,0.00588,85447.0,85432.0,0.00588]
[1766110384221,0.49026,85445.0,85432.0,0.00588]
[1766110386013,1.06908,85445.0,85432.0,0.00588]
[1766110387069,0.00588,85447.0,85432.0,0.00588]
[1766110387262,0.57882,85446.0,85432.0,0.00588]
[1766110387463,0.00588,85447.0,85432.0,0.00588]
[1766110387670,1.06908,85446.0,85432.0,0.00588]
[1766110388512,0.00588,85447.0,85432.0,0.00588]
[1766110388940,1.06908,85446.0,85432.0,0.00588]
[1766110389152,0.00588,85447.0,85432.0,0.00588]
[1766110389614,0.49026,85431.0,85428.0,0.00588]
[1766110390653,0.07020828,85442.0,85431.0,0.000731]
[1766110390654,0.57882,85437.0,85431.0,0.000731]
[1766110391064,0.57882,85437.0,85428.0,0.00588]
[1766110392226,0.49614,85439.0,85428.0,0.00588]
[1766110392866,0.59138,85438.0,85428.0,0.00588]
[1766110393071,0.4842,85437.0,85428.0,0.00588]
[1766110393449,1.07558,85436.0,85428.0,0.00588]
[1766110394044,0.00588,85439.0,85428.0,0.00588]
[1766110394481,0.00588,85439.0,85429.0,0.70679783]
[1766110398779,0.00588,85439.0,85428.0,0.00588]
[1766110398992,0.00588,85439.0,85429.0,0.70679783]
[1766110399423,1.07558,85438.0,85429.0,0.70679783]
[1766110399635,0.0907,85456.0,85429.0,0.70679783]
[1766110399636,0.0907,85452.0,85438.0,0.653381]
[1766110399865,0.0856041,85452.0,85440.0,0.70679783]
[1766110400095,0.5698041,85452.0,85440.0,0.70679783]
[1766110400719,0.5698041,85452.0,85438.0,0.65853]
[1766110400931,1.07558,85451.0,85440.0,0.70679783]
[1766110401142,1.07558,85439.0,85421.0,0.57176]
[1766110401347,0.000368,85440.0,85426.0,0.05001839]
[1766110401925,1.07558,85439.0,85426.0,0.05001839]
[1766110402732,0.4842,85439.0,85426.0,0.06172442]